Cogmind - Beta 14 @@@ ROGUE MODE // 2024.09.05 @ 17:42:01 Player: TapeIsSticky Result: Destroyed by Gamma Bomb Trap Performance ------------- Evolutions (8) 4000 Regions Visited (21) 4200 Robots Destroyed (242) 1210 Value Destroyed (12028) 12028 Prototype IDs (12) 240 Alien Tech Used (1) 200 Bonus (8287) 8287 TOTAL SCORE: 30165 Bonus ------- High Alert Combat Kills 486 Follower Combat Kills 2528 Forged Quantum Companion 1000 Registered with UFD 300 Met Warlord at Base 500 MAIN.C Attacked Warlord 500 Warlord Defense Kills 1396 Built Enhanced Grunts 300 A7 Reached Mainframe 300 Met R17 at Cetus 500 Met R17 at Research 2000 Friendly Fire -1523 Cogmind --------- Core Integrity 0/1450 Matter 294/300 Energy 98/100 System Corruption 9% Temperature Cool (0) Movement Core (50) Location -2/Research Parts ------- > --- POWER (3) -------- (None) > --- PROPULSION (6) --- (None) > --- UTILITY (12) ----- (None) > --- WEAPON (3) ------- Quantum Companion > --- INVENTORY (5) ---- Myomer Leg Gamma Rifle Heavy Laser Plasma Rifle Phase Gun Peak State ------------ > --- POWER ------------ Micro Antimatter Reactor Quantum Reactor Light Quantum Reactor > --- PROPULSION ------- Armored Heavy Treads Improved Heavy Siege Treads Overtuned Huge Scrapsphere > --- UTILITY ---------- Advanced Heat Sink Advanced Heat Sink Advanced Heat Sink Advanced Heat Sink Huge Storage Unit Advanced Weapon Cycler Point Defense Array Improved Hacking Suite Improved System Shield > --- WEAPON ----------- Phase Gun Enhanced Quantum Rifle Quantum Companion > --- INVENTORY -------- Light Antimatter Reactor Light Antimatter Reactor Light Antimatter Reactor Quantum Reactor Light Quantum Reactor Myomer Leg Myomer Leg Myomer Leg Myomer Leg Myomer Leg Myomer Leg Energy Well Gamma Rifle Gamma Rifle Gamma Rifle Heavy Laser Heavy Laser Plasma Rifle Variable Charge Gun Heavy Beamcaster Phase Gun Compact HERF Cannon Fusion Bomb Launcher Remote Datajack [Rating: 161] Favorites ----------- Power Light Antimatter Reactor Engine Angular Momentum Engine Power Core Micro Fission Core Reactor Light Antimatter Reactor Propulsion Light Treads Treads Light Treads Wheel Centrium Wheel Utility Huge Storage Unit Device Advanced Heat Sink Storage Huge Storage Unit Processor Improved Targeting Computer Hackware Improved System Shield Protection Improved Utility Shielding Weapon Quantum Companion Energy Gun Improved Lightning Gun Energy Cannon Compact HERF Cannon Ballistic Gun Heavy Machine Gun Ballistic Cannon Improved Light Cannon Launcher Fusion Bomb Launcher Special Weapon RU-N14's Throwing Claymores v3 Impact Weapon Hammer Slashing Weapon Quantum Companion Build | -11 -10 -10 -9 -9 -9 -9 -6 -6 -6 -6 -6 -5 -5 -5 -5 -4 -4 -4 -4 -3 -2 ------- Run | Yrd Mat Min Mat Sto Rec Scr Fac Ext Cet Arc Hub Fac Upp Upp War Pro Fac Upp Upp Res Res Slots Evolved 16 | . . . 2 . . . 6 . . . . 2 . . . . 2 . . 2 2 Power 2 | . . . . . . . 1 . . . . 1 . . . . . . . . . Propulsion 3 | . . . 1 . . . 1 . . . . . . . . . . . . . 1 Utility 10 | . . . 1 . . . 3 . . . . 1 . . . . 2 . . 2 1 Weapon 1 | . . . . . . . 1 . . . . . . . . . . . . . . Parts Attached 338 | 5 13 5 16 9 . 9 36 38 6 8 16 26 6 5 14 12 25 25 19 32 13 Power 49 | 1 3 1 1 . . 1 4 3 . 1 4 3 1 . . 3 6 3 3 6 5 Engine 18 | 1 2 1 1 . . 1 3 3 . 1 3 1 . . . . . . . 1 . Core 12 | . 1 . . . . . 1 . . . 1 2 . . . 3 3 1 . . . Reactor 19 | . . . . . . . . . . . . . 1 . . . 3 2 3 5 5 Propulsion 52 | 2 1 1 4 2 . 2 4 11 2 . . . 2 1 1 2 5 3 5 3 1 Treads 47 | 2 1 1 3 2 . 2 4 11 2 . . . 2 1 1 2 4 3 3 3 . Leg . | . . . . . . . . . . . . . . . . . . . . . . Wheel 5 | . . . 1 . . . . . . . . . . . . . 1 . 2 . 1 Hover . | . . . . . . . . . . . . . . . . . . . . . . Flight . | . . . . . . . . . . . . . . . . . . . . . . Utility 123 | 1 4 2 5 1 . 1 10 10 2 6 6 11 2 1 4 4 11 11 7 19 5 Device 62 | . 1 1 . . . . 5 3 . 5 4 6 2 . 1 1 7 7 5 10 4 Storage 7 | 1 3 . 1 . . . . . . . 1 . . . . . . . . 1 . Processor 11 | . . 1 2 . . . 1 1 . . . 1 . . . 2 . 1 1 1 . Hackware 3 | . . . . . . . . . . . . . . . . . . . . 3 . Protection 40 | . . . 2 1 . 1 4 6 2 1 1 4 . 1 3 1 4 3 1 4 1 Artifact . | . . . . . . . . . . . . . . . . . . . . . . Weapon 114 | 1 5 1 6 6 . 5 18 14 2 1 6 12 1 3 9 3 3 8 4 4 2 Energy Gun 30 | . 3 . . . . . 1 4 2 . 2 . 1 1 4 2 1 3 2 2 2 Energy Cannon 8 | . . . . . . . 1 2 . . 1 2 . . . . . 1 . 1 . Ballistic Gun 32 | 1 1 . 4 2 . . 2 4 . 1 2 7 . 1 3 1 1 2 . . . Ballistic Cannon 19 | . . . . 3 . 3 7 1 . . . . . 1 . . 1 2 1 . . Launcher 14 | . 1 . 2 1 . 1 2 2 . . . 2 . . 1 . . . 1 1 . Special Weapon 1 | . . . . . . . . . . . . . . . 1 . . . . . . Impact Weapon 1 | . . 1 . . . . . . . . . . . . . . . . . . . Slashing Weapon 9 | . . . . . . 1 5 1 . . 1 1 . . . . . . . . . Piercing Weapon . | . . . . . . . . . . . . . . . . . . . . . . Special Melee Weapon . | . . . . . . . . . . . . . . . . . . . . . . Unidentified Prototypes 12 | . . . . 1 . 1 2 . 3 . 1 . . 1 1 1 1 . . . . Corrupted Parts 10 | . 1 . . . . . . . 3 . . . 2 . . 2 . . 2 . . System Corruption 59 | . 3 . . . . . . . 27 . . . 8 . . 13 . . 8 . . Parts Lost 92 | . 5 1 . 2 . . 3 4 . . 1 . 1 . 10 4 8 14 14 5 20 Power 21 | . 1 . . . . . . . . . 1 . . . 3 . 2 3 3 2 6 Propulsion 22 | . 1 . . 1 . . 1 3 . . . . 1 . 1 1 2 2 4 . 5 Utility 34 | . 1 . . 1 . . 1 1 . . . . . . 4 2 3 6 5 3 7 Weapon 15 | . 2 1 . . . . 1 . . . . . . . 2 1 1 3 2 . 2 Highest Loss Streak 14 | . 2 1 . 1 . . 1 1 . . 1 . 1 . 10 12 4 4 14 3 14 To Critical Strikes 1 | . . . . . . . . . . . . . 1 . . . . . . . . Average Slot Usage (%) 87 | . 88 84 100 99 98 100 99 98 87 85 85 87 87 87 80 84 87 80 73 51 61 Engine 6 | . 8 13 11 11 11 11 6 12 13 13 6 5 5 5 4 . . . . . . Core 2 | . 3 . . . . . 5 . . . 5 10 9 5 4 15 5 6 . . . Reactor 2 | . . . . . . . . . . . . . 1 5 5 . 8 5 7 7 9 Treads 19 | . 26 15 22 24 33 33 26 25 14 13 13 11 10 15 16 15 14 9 13 6 6 Device 10 | . 7 2 . . . . 13 7 13 16 13 16 17 16 15 5 19 18 20 9 18 Storage 7 | . 14 14 11 11 11 11 6 6 6 6 6 5 5 5 5 5 5 5 4 1 3 Processor 7 | . . 10 16 11 11 11 6 6 6 6 6 5 5 5 5 15 15 14 12 . . Protection 8 | . . . 5 11 11 11 12 17 13 8 13 11 11 10 10 8 3 3 . 5 3 Energy Gun 2 | . 13 12 . . . . . 1 13 8 6 1 . 2 1 2 . 1 4 1 5 Ballistic Gun 5 | . 14 14 21 15 . . 5 7 . 3 5 9 11 7 1 8 7 2 . . . Ballistic Cannon 4 | . . . . 5 20 13 7 4 . . . . . . . . 1 4 3 . . Slashing Weapon 4 | . . . . . . 8 4 3 6 6 6 4 4 5 5 4 5 5 5 4 3 Peak Build Rating 161 | 5 10 8 16 18 16 24 50 55 97 102 107 129 123 128 132 111 146 133 126 151 161 Average Rating 68 | 3 7 6 14 16 15 22 43 49 88 97 104 121 122 126 121 105 131 112 99 86 123 On Entrance 64 | . 5 5 8 16 16 12 24 48 55 97 102 105 123 123 117 85 107 110 113 15 130 Naked Turns 18 | . . . . . . . . . . . . . . . . . . . 1 . 17 Heaviest Build 180 | 10 88 88 98 98 96 102 130 127 125 127 129 146 143 143 148 119 146 152 140 180 175 Greatest Support 188 | 40 40 40 40 60 60 60 80 88 160 160 160 160 160 188 188 127 187 16 164 163 163 Greatest Overweight (x) 9 | . 4 4 9 9 1 1 1 1 1 . . . . . . . 7 9 8 1 7 Average Overweight (x) 1 | . . 3 8 7 1 1 1 1 . . . . . . . . . 7 2 . . Largest Inventory Capacity 25 | 8 25 25 25 25 25 25 25 25 25 25 25 25 25 25 25 25 25 25 25 25 25 Average Capacity 23 | 6 15 25 25 25 25 25 25 25 25 25 25 25 25 25 25 25 25 25 21 12 21 Most Carried 25 | 7 15 15 25 25 25 25 25 25 25 25 25 25 24 25 25 21 25 23 20 11 24 Average Carried 20 | 4 12 12 19 23 24 24 23 24 24 24 24 24 23 22 24 11 19 19 15 5 15 Final Capacity 25 | 8 25 25 25 25 25 25 25 25 25 25 25 25 25 25 25 25 25 25 5 25 5 Final Carried 25 | 7 15 11 20 24 25 25 24 24 24 24 25 24 23 25 22 10 24 17 5 11 5 Class Distribution -------------------- 56% | Scavenger-Mutant 33% | Mutant 3% | Derelict-Mutant Dominant Class ---------------- Mutant | -10/Materials Mutant | -10/Mines Mutant | -9/Materials Scavenger-Mutant | -9/Storage Scavenger-Mutant | -9/Recycling Mutant | -9/Scraptown Derelict-Mutant | -6/Factory Scavenger-Mutant | -6/Extension Scavenger-Mutant | -6/Cetus Scavenger-Mutant | -6/Archives Scavenger-Mutant | -6/Hub_04(d) Scavenger-Mutant | -5/Factory Scavenger-Mutant | -5/Upper Caves Scavenger-Mutant | -5/Upper Caves Scavenger-Mutant | -5/Warlord Scavenger-Mutant | -4/Proximity Caves Scavenger-Mutant | -4/Factory Scavenger-Mutant | -4/Upper Caves Scavenger-Mutant | -4/Upper Caves Scavenger-Mutant | -3/Research Scavenger-Mutant | -2/Research Resources | -11 -10 -10 -9 -9 -9 -9 -6 -6 -6 -6 -6 -5 -5 -5 -5 -4 -4 -4 -4 -3 -2 ----------- Run | Yrd Mat Min Mat Sto Rec Scr Fac Ext Cet Arc Hub Fac Upp Upp War Pro Fac Upp Upp Res Res Matter Collected 7849 | 224 330 16 621 280 45 90 815 959 153 160 303 575 249 167 199 261 1289 338 250 406 119 Remotely 1026 | . . . . . . . . . . . . . . . . . 877 149 . . . Salvage Created 12673 | . 764 16 793 447 84 . 735 979 449 277 432 915 422 190 816 413 1502 468 1120 745 1106 Parts 606 | . 60 . 66 15 7 . 40 48 10 18 18 36 22 8 32 19 65 16 43 37 46 Haulers Intercepted 6 | . 1 . 2 . . . 1 1 . . 1 . . . . . . . . . . Recyclers Shooed 4 | . . . 1 1 . . . 2 . . . . . . . . . . . . . Parts Field Recycled . | . . . . . . . . . . . . . . . . . . . . . . Retrieved Matter . | . . . . . . . . . . . . . . . . . . . . . . Parts Self-Destructed 83 | . . . . . . . . . . . . . 18 6 . 19 . 5 35 . . Prevented 24 | . . . . . . . . . . . . . 3 4 . . . 5 12 . . Kills | -11 -10 -10 -9 -9 -9 -9 -6 -6 -6 -6 -6 -5 -5 -5 -5 -4 -4 -4 -4 -3 -2 ------- Run | Yrd Mat Min Mat Sto Rec Scr Fac Ext Cet Arc Hub Fac Upp Upp War Pro Fac Upp Upp Res Res Combat Hostiles Destroyed 202 | . 20 1 17 7 2 . 16 16 6 1 5 12 10 4 11 6 22 6 18 9 13 Melee 23 | . . . . . . . 2 . . . . . 1 . . 1 . 3 9 3 4 Guns 98 | . 17 . 12 4 . . 6 7 1 1 4 8 9 4 1 5 12 1 3 1 2 Cannons 36 | . . . . 1 2 . 4 3 . . . 3 . . 2 . 9 1 5 2 4 AOE 28 | . 3 . 5 2 . . 3 4 . . . . . . 6 . 1 . 1 3 . Classes Destroyed 21 | . 6 1 3 1 . . 2 2 . . . 1 . . 2 . . . . 3 . Worker 5 | . 1 . 2 . . . . . . . . . . . . . . . . 1 1 Builder 1 | . . . . . . . 1 . . . . . . . . . . . . . . Tunneler 1 | . . . . . . . . 1 . . . . . . . . . . . . . Hauler 6 | . 1 . 2 . . . 1 1 . . 1 . . . . . . . . . . Recycler 4 | . . . 1 2 . . . 1 . . . . . . . . . . . . . Operator 11 | . 1 . . . . . . 1 . 6 . . . . . . 1 . . 2 . Watcher 10 | . 2 . 1 1 . . . 2 1 . . 1 . . . . . . . 1 1 Swarmer 31 | . 6 . 4 . . . 3 5 . . . . 5 2 . . . . 5 1 . Grunt 87 | . 14 . 8 5 . . 2 3 . . 2 6 5 1 4 3 14 4 2 4 10 Brawler 8 | . . . . 1 . . . . . . . . . . 3 . . . 4 . . Duelist 8 | . . . 1 . . . 1 . . . . . . . 1 1 . . 4 . . Protector 1 | . . . . . . . . . . . . 1 . . . . . . . . . Sentry 23 | . . . 4 1 2 . 5 5 . 1 2 1 . 1 . . . . 1 . . Demolisher 4 | . . . . . . . . . . . . . . . 2 . . . . 2 . Specialist 1 | . . . . . . . . . . . . . . . . . . . . 1 . Hunter 6 | . . . . . . . . 3 . . 1 2 . . . . . . . . . Programmer 23 | . . . . . . . 5 . . . . 2 . . 1 2 8 . 2 . 3 Cetus Guard 6 | . . . . . . . . . 6 . . . . . . . . . . . . Striker 1 | . . . . . . . . . . . . . . . . . . . . 1 . Scrapoid 1 | . . . . . . . . . . . . . . . . . . . . 1 . Assembled 1 | . . 1 . . . . . . . . . . . . . . . . . . . Thug 1 | . . . . . . . . . . . . . . . 1 . . . . . . Savage 1 | . . . . . . . . . . . . . . . . . . 1 . . . Mutant 2 | . . . . . . . . . . . . . . . 1 . . 1 . . . Best Kill Streak 7 | . 4 1 6 3 1 . 4 3 4 3 2 4 4 2 5 4 6 4 7 3 4 Combat Bots Only 7 | . 4 1 5 3 1 . 3 3 3 1 2 4 4 2 5 4 6 4 7 3 4 Max Kills in Single Turn 3 | . 2 1 3 3 1 . 2 2 1 1 1 1 1 1 3 1 2 1 1 3 2 Gunslinging 1 | . 1 . . . . . . . . . . . . . . . . . . . . Exploded 2 | . 1 . 2 2 . . 2 2 . . . . . . 1 . 1 . 1 2 . Melee 1 | . . . . . . . 1 . . . . . 1 . . 1 . 1 1 1 1 Uniques/NPCs Destroyed . | . . . . . . . . . . . . . . . . . . . . . . Combat | -11 -10 -10 -9 -9 -9 -9 -6 -6 -6 -6 -6 -5 -5 -5 -5 -4 -4 -4 -4 -3 -2 -------- Run | Yrd Mat Min Mat Sto Rec Scr Fac Ext Cet Arc Hub Fac Upp Upp War Pro Fac Upp Upp Res Res Hostile Shots Fired 1747 | . 96 8 46 28 6 . 279 124 15 3 63 130 73 13 133 66 188 91 96 65 224 Missed 468 | . 23 1 15 10 3 . 118 34 6 2 23 18 8 1 35 17 42 21 24 18 49 Intercepted 4 | . . . . . . . . . . . . . . . . . . . . 4 . Deflected 20 | . . . . . . . . . . . . 1 3 . . . 6 . 4 . 6 Damage Taken 22388 | . 790 76 338 239 46 . 1066 1284 177 229 528 1642 835 171 3002 1039 2378 1288 1697 1519 4044 Core 3831 | . 177 . 25 21 . . 71 133 38 9 70 85 54 . 609 162 79 179 472 172 1475 Absorbed by Shields 2935 | . . . . . . . 460 233 117 . . 482 302 61 282 . 583 176 . 239 . Reduced by Siege Mode 847 | . . . . . . . . . 8 . . 136 106 18 105 38 183 17 52 29 155 Redirected to Shielding 456 | . . . . . . . 70 25 9 . 56 . 26 . 143 14 11 . . 102 . Ignored by Resistances 293 | . . . . . . . . . . . . . . . . . . 13 27 . 253 Regen/Repaired (Parts) 841 | . . . . . . . . . . . . 65 . . 1 . 775 . . . . Core Remaining (%) 58 | 100 . 29 . . . 88 . . . . 62 . . . . 9 . . 36 86 . Volleys Fired 540 | . 68 5 42 22 4 . 48 57 15 12 28 43 22 15 17 15 60 13 19 23 12 Largest 3 | . 2 2 2 2 2 . 3 3 2 2 2 2 3 2 2 3 2 2 2 2 2 Hottest 315 | . 60 60 53 69 78 . 144 135 240 120 300 110 128 95 315 275 115 146 305 169 159 Shots Fired 1058 | . 136 9 83 44 8 . 116 143 29 25 48 86 47 25 18 30 121 17 24 25 24 Gun 854 | . 132 9 78 38 . . 62 98 29 25 46 76 47 25 7 30 99 15 13 7 18 Cannon 166 | . . . . 4 8 . 51 39 . . 2 10 . . . . 22 2 8 14 6 Launcher 36 | . 4 . 5 2 . . 3 6 . . . . . . 9 . . . 3 4 . Special 2 | . . . . . . . . . . . . . . . 2 . . . . . . Kinetic 705 | . 69 5 78 42 8 . 102 104 . 2 15 76 41 16 . 23 111 5 8 . . Thermal 67 | . . . . . . . . . 2 . 7 . . . 6 7 10 . 10 7 18 Explosive 26 | . 4 . 5 2 . . 3 6 . . . . . . 2 . . . . 4 . Electromagnetic 260 | . 63 4 . . . . 11 33 27 23 26 10 6 9 10 . . 12 6 14 6 Robot Hit Streak 39 | . 8 1 12 6 2 . 20 16 10 6 5 39 17 4 7 11 15 9 8 13 9 Robot Miss Streak 5 | . 3 3 5 2 1 . 2 5 2 4 2 2 3 3 1 1 3 1 2 2 3 Penetration Max 1 | . . . . . . . 1 . . . 1 . . . . . 1 . . . . Secondary Targets 14 | . 1 . . 1 . . . 1 . . 1 2 2 1 . 2 2 . . . 1 Max Gunslinging Chain 1 | . 1 . . 1 . . . 1 . . 1 1 1 1 . 1 1 . . . 1 Autonomous 31 | . . . . . . . . . . . . 6 1 . 2 . 7 . 10 . 5 Shots Hit Robots 797 | . 78 4 48 24 5 . 96 95 22 20 32 76 33 8 12 24 93 19 35 26 47 Core Hits 426 | . 43 1 33 14 2 . 32 46 6 12 13 27 17 6 34 13 42 10 31 19 25 Critical Kills 18 | . . . . . . . . . . . . 4 . . . 1 10 1 2 . . Critical Parts Destroyed 28 | . . 1 1 . . . 2 . . . 1 7 1 . . . 12 . 3 . . Critical Strikes 55 | . . 1 1 1 . . 5 2 . . 1 11 1 . 1 1 22 1 5 2 . Burn 2 | . . . . . . . . . . . . . . . . . . . . 2 . Destroy 46 | . . . 1 . . . 3 . . . 1 11 1 . . 1 22 1 5 . . Blast 5 | . . . . 1 . . 2 2 . . . . . . . . . . . . . Smash 1 | . . 1 . . . . . . . . . . . . . . . . . . . Sever 1 | . . . . . . . . . . . . . . . 1 . . . . . . Melee Attacks 179 | . . 1 . . . . 14 6 21 6 . 9 1 3 7 2 14 8 25 15 47 Impact 1 | . . 1 . . . . . . . . . . . . . . . . . . . Slashing 178 | . . . . . . . 14 6 21 6 . 9 1 3 7 2 14 8 25 15 47 Piercing . | . . . . . . . . . . . . . . . . . . . . . . Sneak Attacks 12 | . . . . . . . . 1 . 5 . 1 . . . . 1 . . 3 1 Combat Hostiles 1 | . . . . . . . . . . . . . . . . . . . . 1 . Follow-up Attacks 2 | . . . . . . . . . . . . . . . . . . . . 1 1 Damage Inflicted 30467 | . 1298 70 1169 579 126 . 2722 3015 629 1331 1014 2044 914 178 2439 815 3386 895 2900 2283 2660 Guns 13715 | . 981 29 783 382 . . 1100 1577 629 556 935 1052 764 178 226 779 2246 271 668 131 428 Cannons 5988 | . . . . 69 117 . 1053 682 . . 79 817 72 . 162 . 856 49 1023 359 650 Explosions 5489 | . 283 . 386 128 . . 412 668 . 333 . . . . 1903 . 95 135 267 879 . Melee 5096 | . . 41 . . . . 157 88 . 435 . 175 78 . 37 36 189 440 942 896 1582 Ramming 68 | . 34 . . . 9 . . . . 7 . . . . . . . . . 18 . Kinetic 10584 | . 433 17 783 451 117 . 1908 1696 . . 366 1052 636 111 . 482 2330 40 162 . . Thermal 3473 | . 30 . . . . . . 225 44 333 201 . . . 803 297 267 135 579 131 428 Explosive 2876 | . 253 . 386 128 . . 412 443 . . . . . . 375 . . . . 879 . Electromagnetic 5646 | . 548 12 . . . . 245 563 585 556 447 323 128 67 951 . . 280 356 359 226 Impact 41 | . . 41 . . . . . . . . . . . . . . . . . . . Slashing 5166 | . . . . . . . 157 88 . 435 . 175 78 . 148 36 189 440 942 896 1582 Piercing . | . . . . . . . . . . . . . . . . . . . . . . Phasic 2613 | . . . . . . . . . . . . 494 72 . 162 . 600 . 861 . 424 Highest Corruption 33 | . 3 3 1 1 1 . 5 6 33 33 15 . 8 8 8 24 13 13 28 1 8 Average Corruption 8 | . 3 3 1 1 1 . 2 5 27 22 12 . 7 8 6 23 8 13 15 1 7 Corruption Purged 23 | . . . . . . . . . . 22 . . . . . . . . . 1 . Corruption Blocked . | . . . . . . . . . . . . . . . . . . . . . . Effects 430 | . 14 15 6 3 7 . 20 55 36 41 25 . 13 37 2 20 34 46 36 8 12 Message Errors 111 | . 3 6 1 1 3 . 7 13 14 9 10 . 2 10 2 1 6 10 11 1 1 Matter Fused 101 | . 3 3 4 . 2 . 4 13 6 10 5 . 2 11 . 6 8 13 6 1 4 Heat Flow Errors 37 | . 1 . . 1 1 . . 3 5 4 1 . 1 2 . 3 4 3 4 3 1 Energy Discharges 52 | . 1 3 . . 1 . 4 10 2 4 1 . 2 5 . 1 7 5 4 1 1 Parts Rejected 8 | . . . . . . . . 2 . . 1 . 1 . . . 1 . 3 . . Parts Fused 6 | . . . . . . . . . . 1 3 . . . . 1 . . 1 . . Data Loss (minor) 49 | . 2 2 . . . . 2 8 5 5 2 . . 3 . 3 4 8 3 . 2 Data Loss (major) 15 | . 2 . . . . . . 2 . 2 . . 1 3 . . . 2 1 1 1 Misfires 25 | . 1 1 . 1 . . 1 3 2 2 1 . 1 2 . 1 4 3 1 . 1 Alerts 14 | . . . 1 . . . 1 1 . 3 1 . 1 1 . 1 . 1 1 1 1 Misdirections 1 | . . . . . . . . . . . . . . . . . . . 1 . . Weapon Failures 11 | . 1 . . . . . 1 . 2 1 . . 2 . . 3 . 1 . . . Overload Shots 22 | . . . . . . . . . 1 . 3 . . . 5 5 . . 8 . . Overflow Damage 947 | . 34 41 19 . . . 56 34 . 193 . 109 . . 40 . 142 . 39 126 114 Projectiles 181 | . . . . . . . 47 . . . . . . . 30 . 65 . . 17 22 Explosions 165 | . 34 . 19 . . . 9 34 . 22 . . . . 10 . . . 16 21 . Melee 601 | . . 41 . . . . . . . 171 . 109 . . . . 77 . 23 88 92 Knockbacks 17 | . 1 1 . 1 . . 6 4 . . . . . . . . 2 . 1 1 . Impact 3 | . 1 1 . . . . . . . . . . . . . . . . . 1 . Kinetic 14 | . . . . 1 . . 6 4 . . . . . . . . 2 . 1 . . Secondary . | . . . . . . . . . . . . . . . . . . . . . . Self-Inflicted Damage 526 | . 34 . . . . . . 117 . 131 . . . . . . 166 11 58 9 . Shots 12 | . 2 . . . . . . 2 . 2 . . . . . . 2 1 3 . . Rammed 6 | . 3 . . . 1 . . . . 1 . . . . . . . . . 1 . Targets Rammed 8 | . 5 . . . 1 . . . . 1 . . . . . . . . . 1 . Kicked . | . . . . . . . . . . . . . . . . . . . . . . Crushed 2 | . 2 . . . . . . . . . . . . . . . . . . . . Highest Temperature 573 | . 108 60 46 147 151 . 226 220 240 223 337 60 228 273 573 519 164 246 482 424 119 Average Temperature 74 | . 33 30 10 35 45 . 55 41 82 40 135 24 95 90 334 225 70 101 165 133 71 Received Heat Transfer 3752 | . 330 140 117 102 18 . 212 179 . . 126 552 280 36 42 231 562 114 171 27 513 Effects 19 | . . . . . . . . . . . 2 . . . 5 5 . . 2 5 . Shutdowns 9 | . . . . . . . . . . . . . . . 3 1 . . 2 3 . Energy Bleed 1 | . . . . . . . . . . . . . . . . 1 . . . . . Interference 4 | . . . . . . . . . . . . . . . . 2 . . . 2 . Matter Decay 2 | . . . . . . . . . . . 1 . . . . 1 . . . . . Damage (minor) 1 | . . . . . . . . . . . 1 . . . . . . . . . . Damage (major) 1 | . . . . . . . . . . . . . . . 1 . . . . . . Damage (core) 1 | . . . . . . . . . . . . . . . 1 . . . . . . Siege Activations 26 | . . . . . . . . . 1 . 1 4 2 1 1 2 6 2 1 1 4 Total Turns 561 | . . . . . . . . . 14 . 16 142 47 18 12 32 168 21 31 14 46 Longest Duration 53 | . . . . . . . . . 14 . 16 47 31 18 12 30 53 12 31 14 17 Robots Corrupted 17 | . . 1 . . . . 1 2 5 2 1 1 . . 1 . . 1 . 1 1 Combat Hostiles 14 | . . 1 . . . . 1 2 5 . 1 1 . . 1 . . 1 . . 1 Parts Fried 33 | . 3 . . . . . 2 4 10 4 2 4 . . 2 . . . . 1 1 Impact Corruptions 3 | . . 2 . . . . . . . . . . . . . . . . . 1 . Robots Melted . | . . . . . . . . . . . . . . . . . . . . . . Combat Hostiles . | . . . . . . . . . . . . . . . . . . . . . . Parts Melted 6 | . . . . . . . . . . . . . . . . 1 2 1 . . 2 Heat Transferred 3562 | . 50 . . . . . . 150 18 350 161 . . . 601 274 359 150 394 500 555 Parts Sabotaged . | . . . . . . . . . . . . . . . . . . . . . . Parts Stolen . | . . . . . . . . . . . . . . . . . . . . . . Parts Stripped 23 | . . . . . . . . . . . . . . . 5 . . . . . 18 Power Chain Reactions 10 | . 1 . . . . . . 1 . 2 . . . . 5 . . 1 . . . Alert | -11 -10 -10 -9 -9 -9 -9 -6 -6 -6 -6 -6 -5 -5 -5 -5 -4 -4 -4 -4 -3 -2 ------- Run | Yrd Mat Min Mat Sto Rec Scr Fac Ext Cet Arc Hub Fac Upp Upp War Pro Fac Upp Upp Res Res Peak Influence 1470 | . 235 52 440 524 166 . 210 416 343 324 1470 690 . . . . 307 . . 489 513 Initial 637 | . . 52 . 153 126 . . 96 200 108 1 637 . . . . . . . 131 263 Average 201 | . 99 19 190 329 51 . 89 109 270 168 810 564 . . . . 39 . . 239 318 Maximum Alert Level 4 | . 1 . 2 2 . . 1 2 1 1 4 2 . . . . 1 . . 2 2 Low Security (%) 64 | 100 96 100 46 18 100 . 95 90 13 63 10 . . . . . 92 . . 48 . Level 1 21 | . 3 . 46 54 . . 4 6 86 36 16 . . . . . 7 . . 44 84 Level 2 12 | . . . 6 26 . . . 3 . . 10 100 . . . . . . . 7 15 Level 3 1 | . . . . . . . . . . . 25 . . . . . . . . . . Level 4 1 | . . . . . . . . . . . 36 . . . . . . . . . . Level 5 . | . . . . . . . . . . . . . . . . . . . . . . High Security . | . . . . . . . . . . . . . . . . . . . . . . Max Security . | . . . . . . . . . . . . . . . . . . . . . . Squads Dispatched 45 | . 5 . 2 1 . . 4 5 . . 12 2 . . . . 5 . 1 5 3 Investigation 13 | . 3 . 1 1 . . . 2 . . 1 . . . . . 1 . . 4 . Extermination 9 | . . . . . . . 4 . . . . 1 . . . . 3 . . . 1 Reinforcement 17 | . 2 . 1 . . . . 3 . . 7 . . . . . 1 . . 1 2 Assault 5 | . . . . . . . . . . . 3 1 . . . . . . 1 . . Garrison 1 | . . . . . . . . . . . 1 . . . . . . . . . . Intercept . | . . . . . . . . . . . . . . . . . . . . . . Searches Triggered . | . . . . . . . . . . . . . . . . . . . . . . Construction Impeded 2 | . . . . . . . . 2 . . . . . . . . . . . . . Haulers Reinforced 2 | . . . . . . . . . . . 1 . . . . . . . . . 1 Active Scanning Responses . | . . . . . . . . . . . . . . . . . . . . . . Cargo Convoy Interrupts . | . . . . . . . . . . . . . . . . . . . . . . Stealth | -11 -10 -10 -9 -9 -9 -9 -6 -6 -6 -6 -6 -5 -5 -5 -5 -4 -4 -4 -4 -3 -2 --------- Run | Yrd Mat Min Mat Sto Rec Scr Fac Ext Cet Arc Hub Fac Upp Upp War Pro Fac Upp Upp Res Res Distress Signals 24 | . 3 . 4 . . . . 2 2 . 2 . . . . . 1 . 1 5 4 Communications Jammed 60 | . . . . . . . . . . . . 20 . . . . 40 . . . . Distress Signals 60 | . . . . . . . . . . . . 20 . . . . 40 . . . . Times Spotted 384 | . 28 2 33 12 2 . 17 30 9 13 19 19 12 5 39 6 27 7 30 37 37 Peak Tracking Total 12 | . 6 2 5 3 1 . 3 6 5 1 6 7 5 2 12 4 6 4 8 7 11 Tactical Retreats 19 | . 1 1 . . . . . . . . . 1 2 . . . . 1 3 5 5 Traps | -11 -10 -10 -9 -9 -9 -9 -6 -6 -6 -6 -6 -5 -5 -5 -5 -4 -4 -4 -4 -3 -2 ------- Run | Yrd Mat Min Mat Sto Rec Scr Fac Ext Cet Arc Hub Fac Upp Upp War Pro Fac Upp Upp Res Res Traps Triggered 15 | . 2 . . 2 . . 1 1 . . 1 1 . . . . . . . 5 2 Indirectly . | . . . . . . . . . . . . . . . . . . . . . . Trap Hack Attempts . | . . . . . . . . . . . . . . . . . . . . . . Triggered . | . . . . . . . . . . . . . . . . . . . . . . Disarmed . | . . . . . . . . . . . . . . . . . . . . . . Reprogrammed . | . . . . . . . . . . . . . . . . . . . . . . Reused . | . . . . . . . . . . . . . . . . . . . . . . Traps Extracted . | . . . . . . . . . . . . . . . . . . . . . . Installed . | . . . . . . . . . . . . . . . . . . . . . . Triggered 9 | . . . . . . . . . . . . . . . 9 . . . . . . Machines | -11 -10 -10 -9 -9 -9 -9 -6 -6 -6 -6 -6 -5 -5 -5 -5 -4 -4 -4 -4 -3 -2 ---------- Run | Yrd Mat Min Mat Sto Rec Scr Fac Ext Cet Arc Hub Fac Upp Upp War Pro Fac Upp Upp Res Res Machines Disabled 26 | . 3 . 1 . . . . 3 3 . 6 5 . . . . 3 1 . 1 . Max in Single Turn 2 | . 1 . . . . . . 2 1 . 1 1 . . . . 2 1 . . . Garrison Access 2 | . . . . . . . . . . . 1 . . . . . . . . 1 . Machines Repaired . | . . . . . . . . . . . . . . . . . . . . . . Machines Dismantled . | . . . . . . . . . . . . . . . . . . . . . . Machines Sabotaged . | . . . . . . . . . . . . . . . . . . . . . . Overloaded Fab Kills . | . . . . . . . . . . . . . . . . . . . . . . Hacking | -11 -10 -10 -9 -9 -9 -9 -6 -6 -6 -6 -6 -5 -5 -5 -5 -4 -4 -4 -4 -3 -2 --------- Run | Yrd Mat Min Mat Sto Rec Scr Fac Ext Cet Arc Hub Fac Upp Upp War Pro Fac Upp Upp Res Res Machines Accessed 44 | . 1 . 3 2 2 3 7 6 3 . 2 4 . 1 . . 4 . . 5 1 Terminals 30 | . 1 . 3 2 . . 6 6 3 . 2 3 . . . . 1 . . 2 1 Fabricators . | . . . . . . . . . . . . . . . . . . . . . . Repair Stations 4 | . . . . . . . . . . . . 1 . . . . 3 . . . . Recycling Units 2 | . . . . . . . . . . . . . . . . . . . . 2 . Scanalyzers . | . . . . . . . . . . . . . . . . . . . . . . Garrison Access 2 | . . . . . . . 1 . . . . . . . . . . . . 1 . Total Hacks 103 | . 4 . 10 4 8 6 13 15 6 . 8 9 . 2 . . 8 . . 9 1 Successful 39 | . 2 . 1 2 8 6 1 3 1 . 3 3 . 2 . . 3 . . 4 . Failed 64 | . 2 . 9 2 . . 12 12 5 . 5 6 . . . . 5 . . 5 1 Catastrophic 20 | . . . 3 . . . 2 5 2 . 2 1 . . . . 2 . . 2 1 Database Lockouts . | . . . . . . . . . . . . . . . . . . . . . . Manual 51 | . 4 . 10 1 . . 11 . 1 . 6 7 . . 1 . 1 . . 8 1 Terminals 70 | . 4 . 10 4 . . 11 15 6 . 8 7 . . . . 1 . . 3 1 Fabricators . | . . . . . . . . . . . . . . . . . . . . . . Repair Stations 9 | . . . . . . . . . . . . 2 . . . . 7 . . . . Recycling Units 5 | . . . . . . . . . . . . . . . . . . . . 5 . Scanalyzers . | . . . . . . . . . . . . . . . . . . . . . . Garrison Access 3 | . . . . . . . 2 . . . . . . . . . . . . 1 . Terminal Hacks 26 | . 1 . . 2 8 6 . 3 1 . 2 1 . 2 . . . . . . . Record 15 | . . . . . 7 5 . . 1 . . . . 2 . . . . . . . Open Door 6 | . . . . 2 . 1 . 3 . . . . . . . . . . . . . Branch Access Points 2 | . 1 . . . . . . . . . . 1 . . . . . . . . . Unreport Threat 1 | . . . . . . . . . . . 1 . . . . . . . . . . Recall Reinforcements 1 | . . . . . . . . . . . 1 . . . . . . . . . . Release Object 1 | . . . . . 1 . . . . . . . . . . . . . . . . Fabricator Hacks . | . . . . . . . . . . . . . . . . . . . . . . Repair Station Hacks 5 | . . . . . . . . . . . . 2 . . . . 3 . . . . Scan Component 3 | . . . . . . . . . . . . 1 . . . . 2 . . . . Repair 2 | . . . . . . . . . . . . 1 . . . . 1 . . . . Recycling Unit Hacks . | . . . . . . . . . . . . . . . . . . . . . . Scanalyzer . | . . . . . . . . . . . . . . . . . . . . . . Garrison Access Hacks 1 | . . . . . . . . . . . . . . . . . . . . 1 . Seal Access 1 | . . . . . . . . . . . . . . . . . . . . 1 . Unauthorized Hacks 7 | . 1 . 1 . . . 1 . . . 1 . . . . . . . . 3 . Terminals 5 | . 1 . 1 . . . 1 . . . 1 . . . . . . . . 1 . Botnet 5 | . 1 . 1 . . . 1 . . . 1 . . . . . . . . 1 . Fabricators . | . . . . . . . . . . . . . . . . . . . . . . Repair Stations 2 | . . . . . . . . . . . . . . . . . . . . 2 . Recycling Units . | . . . . . . . . . . . . . . . . . . . . . . Scrapoids 2 | . . . . . . . . . . . . . . . . . . . . 2 . Scanalyzers . | . . . . . . . . . . . . . . . . . . . . . . Garrison Access . | . . . . . . . . . . . . . . . . . . . . . . Data Cores Recovered 4 | . . . 1 . . . . 1 . . . . . . . . 1 . . 1 . Used . | . . . . . . . . . . . . . . . . . . . . . . Hacking Detections 35 | . 1 . 3 1 . . 7 5 4 . 2 4 . . . . 4 . . 3 1 Full Trace Events 6 | . 1 . 1 1 . . . 2 . . . . . . . . 1 . . . . Feedback Events 1 | . . . 1 . . . . . . . . . . . . . . . . . . Corruption 1 | . . . 1 . . . . . . . . . . . . . . . . . . Feedback Blocked . | . . . . . . . . . . . . . . . . . . . . . . Robot Schematics Acquired . | . . . . . . . . . . . . . . . . . . . . . . Robots Built . | . . . . . . . . . . . . . . . . . . . . . . Authchips . | . . . . . . . . . . . . . . . . . . . . . . Time . | . . . . . . . . . . . . . . . . . . . . . . Total Robot Build Rating . | . . . . . . . . . . . . . . . . . . . . . . Part Schematics Acquired . | . . . . . . . . . . . . . . . . . . . . . . Parts Built . | . . . . . . . . . . . . . . . . . . . . . . Authchips . | . . . . . . . . . . . . . . . . . . . . . . Time . | . . . . . . . . . . . . . . . . . . . . . . Total Part Build Rating . | . . . . . . . . . . . . . . . . . . . . . . Parts Repaired 2 | . . . . . . . . . . . . 1 . . . . 1 . . . . Time 146 | . . . . . . . . . . . . 38 . . . . 108 . . . . Parts Recycled . | . . . . . . . . . . . . . . . . . . . . . . Recycled Matter . | . . . . . . . . . . . . . . . . . . . . . . Retrieved Matter . | . . . . . . . . . . . . . . . . . . . . . . Retrieved Components . | . . . . . . . . . . . . . . . . . . . . . . Parts Scanalyzed . | . . . . . . . . . . . . . . . . . . . . . . Part Schematics Acquired . | . . . . . . . . . . . . . . . . . . . . . . Parts Damaged . | . . . . . . . . . . . . . . . . . . . . . . Bothacking | -11 -10 -10 -9 -9 -9 -9 -6 -6 -6 -6 -6 -5 -5 -5 -5 -4 -4 -4 -4 -3 -2 ------------ Run | Yrd Mat Min Mat Sto Rec Scr Fac Ext Cet Arc Hub Fac Upp Upp War Pro Fac Upp Upp Res Res Used RIF Installer . | . . . . . . . . . . . . . . . . . . . . . . Robots Hacked . | . . . . . . . . . . . . . . . . . . . . . . Non-combat . | . . . . . . . . . . . . . . . . . . . . . . Combat . | . . . . . . . . . . . . . . . . . . . . . . Robot Hacks Applied . | . . . . . . . . . . . . . . . . . . . . . . Relay Couplers Released 1 | . . . . . . . . . . . 1 . . . . . . . . . . Machine Destruction 1 | . . . . . . . . . . . 1 . . . . . . . . . . Fabnet Peak Effective % . | . . . . . . . . . . . . . . . . . . . . . . Robots Rewired 4 | . . . . . . . . 4 . . . . . . . . . . . . . Allies Hacked . | . . . . . . . . . . . . . . . . . . . . . . Hacks Repelled . | . . . . . . . . . . . . . . . . . . . . . . Allies | -11 -10 -10 -9 -9 -9 -9 -6 -6 -6 -6 -6 -5 -5 -5 -5 -4 -4 -4 -4 -3 -2 -------- Run | Yrd Mat Min Mat Sto Rec Scr Fac Ext Cet Arc Hub Fac Upp Upp War Pro Fac Upp Upp Res Res Total Allies 29 | . . 2 . . . . . 9 5 . . . . . . . . . . 13 . Largest Group 9 | . . 2 2 1 . . . 7 6 6 5 . . . . . . . . 9 . Highest-Rated Group 639 | . . 57 57 31 . . . 336 639 639 473 . . . . . . . . 564 . Highest-Rated Ally 159 | . . 31 31 31 . . . 159 159 159 96 . . . . . . . . 67 . Total Orders 2 | . . . . . . . . 1 . . 1 . . . . . . . . . . STAY 2 | . . . . . . . . 1 . . 1 . . . . . . . . . . Ally Attacks 405 | . . 8 49 15 . . . 76 17 17 85 . . . . . . . . 138 . Total Damage 11468 | . . 41 610 193 . . . 2632 969 745 2947 . . . . . . . . 3331 . Kills 76 | . . 1 10 4 . . . 15 3 3 25 . . . . . . . . 15 . Allies Corrupted 3 | . . . . . . . . . . . 3 . . . . . . . . . . Allies Melted . | . . . . . . . . . . . . . . . . . . . . . . Intel | -11 -10 -10 -9 -9 -9 -9 -6 -6 -6 -6 -6 -5 -5 -5 -5 -4 -4 -4 -4 -3 -2 ------- Run | Yrd Mat Min Mat Sto Rec Scr Fac Ext Cet Arc Hub Fac Upp Upp War Pro Fac Upp Upp Res Res Robot Analysis Total . | . . . . . . . . . . . . . . . . . . . . . . Derelict Logs Recovered 7 | . . 1 . . . . . . . . . . . 2 . 1 . 2 1 . . Drone Launches . | . . . . . . . . . . . . . . . . . . . . . . Drone Recoveries . | . . . . . . . . . . . . . . . . . . . . . . Decoded 0b10 Intel 72 | . . . . . . . . . . . . . . . . . 72 . . . . Items 72 | . . . . . . . . . . . . . . . . . 72 . . . . Exploration | -11 -10 -10 -9 -9 -9 -9 -6 -6 -6 -6 -6 -5 -5 -5 -5 -4 -4 -4 -4 -3 -2 ------------- Run | Yrd Mat Min Mat Sto Rec Scr Fac Ext Cet Arc Hub Fac Upp Upp War Pro Fac Upp Upp Res Res Turns Passed 27644 | 79 1462 1079 1252 458 1032 4042 2200 2050 658 1004 706 1597 684 1086 1149 413 1693 1201 947 2116 736 Spaces Moved 13059 | 44 628 228 493 167 424 1626 772 699 319 507 371 796 372 574 669 206 758 439 423 2115 429 Core 1899 | 4 . . . . . . . . . . . . . . . . . . 92 1561 242 Treads 9930 | 40 628 228 41 41 424 1626 772 699 319 507 371 796 372 574 669 206 745 . 171 554 147 Legs . | . . . . . . . . . . . . . . . . . . . . . . Wheels 1230 | . . . 452 126 . . . . . . . . . . . . 13 439 160 . 40 Hover . | . . . . . . . . . . . . . . . . . . . . . . Flight . | . . . . . . . . . . . . . . . . . . . . . . Fastest Speed 50 | 50 160 320 200 215 240 240 250 240 160 160 160 160 160 160 160 166 163 210 50 50 50 Average Speed 185 | 150 185 463 220 223 240 244 250 248 167 160 160 160 160 160 160 166 176 244 169 91 127 Slowest Speed 480 | 160 480 480 320 320 240 246 250 250 240 160 160 160 160 160 165 166 246 270 250 253 260 Overloaded Moves . | . . . . . . . . . . . . . . . . . . . . . . Propulsion Burnouts . | . . . . . . . . . . . . . . . . . . . . . . Robots Hopped . | . . . . . . . . . . . . . . . . . . . . . . Cave-ins Triggered . | . . . . . . . . . . . . . . . . . . . . . . Exploration Rate (%) 51 | 5 96 58 54 39 85 90 16 65 79 94 34 22 54 71 60 42 20 65 39 35 14 Regions Visited 21 Branch Regions 14 Pre-discovered Areas . | . . . . . . . . . . . . . . . . . . . . . . Known Exits Taken 9 | . 1 1 1 . . . . . . . . 1 1 1 1 1 1 . . . . Unknown Exits Taken 12 | 1 . . . 1 1 1 1 1 1 1 1 . . . . . . 1 1 1 . Scrap Searched 11 | . . . . . . 6 . . . . . . 2 . . . . 1 2 . . Spaces Dug 69 | . . . . . . . 9 . . . . 5 . 6 5 . 12 . . 26 6 Terrain Destroyed 374 | . 20 . 14 13 . . 39 33 . 12 3 8 7 6 44 8 67 21 1 72 6 Melee 46 | . . . . . . . 9 . . . . 5 . 3 5 . 12 . . 6 6 Projectile 57 | . . . . . . . 3 . . 1 3 2 7 3 2 8 26 1 1 . . AOE 270 | . 20 . 14 13 . . 27 33 . 11 . . . . 37 . 29 20 . 66 . Terrain Rammed . | . . . . . . . . . . . . . . . . . . . . . . Walls Destroyed . | . . . . . . . . . . . . . . . . . . . . . . Machines Disabled . | . . . . . . . . . . . . . . . . . . . . . . Actions | -11 -10 -10 -9 -9 -9 -9 -6 -6 -6 -6 -6 -5 -5 -5 -5 -4 -4 -4 -4 -3 -2 --------- Run | Yrd Mat Min Mat Sto Rec Scr Fac Ext Cet Arc Hub Fac Upp Upp War Pro Fac Upp Upp Res Res Total 15330 | 55 791 242 593 217 431 1694 918 884 391 667 437 1027 418 716 717 244 967 537 597 2247 540 Wait 905 | . 60 4 14 . . 41 25 51 8 129 7 127 15 110 9 9 85 48 106 32 25 Move 13038 | 43 627 227 492 166 423 1625 771 698 318 506 370 795 371 573 668 205 757 438 422 2114 429 Hop . | . . . . . . . . . . . . . . . . . . . . . . Pick Up 150 | 7 12 . 17 8 . 8 12 3 7 2 5 12 2 5 1 1 21 3 2 8 14 Fast Attach 71 | 5 2 . . . . 1 2 3 2 3 3 1 1 . . . 4 7 8 25 4 Attach 86 | . 4 4 2 2 . 2 9 7 . 1 . 4 2 3 5 11 5 13 7 2 3 Detach 16 | . . . . . 2 . . 1 1 . . 5 . 1 . . . 2 4 . . Swap 183 | . 7 1 14 7 . 6 26 28 4 4 13 21 3 3 9 1 16 5 4 5 6 Drop 110 | . 6 . 12 4 1 11 11 7 15 3 11 10 1 3 1 . 5 . . 8 1 Fire 540 | . 68 5 42 22 4 . 48 57 15 12 28 43 22 15 17 15 60 13 19 23 12 Melee 177 | . . 1 . . . . 14 6 21 6 . 9 1 3 7 2 14 8 25 14 46 Ram 1 | . . . . . . . . . . . . . . . . . . . . 1 . Kick . | . . . . . . . . . . . . . . . . . . . . . . Crush 7 | . 5 . . . 1 . . . . 1 . . . . . . . . . . . Escape Stasis 23 | . . . . 8 . . . . . . . . . . . . . . . 15 . Rewire 23 | . . . . . . . . 23 . . . . . . . . . . . . . Trap . | . . . . . . . . . . . . . . . . . . . . . . Miscellaneous . | . . . . . . . . . . . . . . . . . . . . . . Route ------- -11/Scrapyard -10/Materials (discovered 5 exits: *Mat x3 / *Min x2) -10/Mines -9/Materials (discovered 3 exits: [*Mat] / *Sto x2) -9/Storage -9/Recycling (discovered 2 exits: [*Fac] / *Scr) -9/Scraptown (discovered 2 exits: *Fac x2) -6/Factory (discovered 2 exits: *Low / *Ext) -6/Extension (discovered 2 exits: *Fac / *Cet) -6/Cetus (discovered 2 exits: *Fac / *Arc) -6/Archives (discovered 3 exits: *Fac / *Hub x2) -6/Hub_04(d) (discovered 2 exits: *Fac x2) -5/Factory (discovered 2 exits: *Upp x2) -5/Upper Caves -5/Upper Caves (discovered 2 exits: *Fac / *War) -5/Warlord -4/Proximity Caves -4/Factory -4/Upper Caves -4/Upper Caves -3/Research -2/Research History --------- Turn | Location | Event 12 | -11/Scrapyard | Discovered new exit (range 15) 80 | -11/Scrapyard | Entered Materials 117 | -10/Materials | Identified exit to Mines 304 | -10/Materials | Build established: Mutant 380 | -10/Materials | Discovered new exit (range 6) 647 | -10/Materials | Discovered new exit (range 10) 1128 | -10/Materials | Core integrity fell below 50% 1181 | -10/Materials | Discovered new exit (range 14) 1542 | -10/Materials | Entered Mines 1780 | -10/Mines | Discovered new exit (range 6) 1805 | -10/Mines | Identified exit to Materials 2117 | -10/Mines | Learned location of 1 exit from Materials 2344 | -10/Mines | Assembled infested the area 2349 | -10/Mines | Assisted by a Guerilla fighting off Assembled 2621 | -10/Mines | Entered Materials 2621 | -9/Materials | Accompanied by 2 allies 2621 | -9/Materials | Evolved 2 slots: Propulsion x1, Utility x1 2622 | -9/Materials | Identified exit to Storage 2626 | -9/Materials | Led the pair of lost Derelicts to an unsafe place 3341 | -9/Materials | Discovered new exit (range 15) 3671 | -9/Materials | Discovered exit to Storage (range 10) 3873 | -9/Materials | Entered Storage 3873 | -9/Storage | Accompanied by 1 ally 4136 | -9/Storage | Used back door to open Recycling access 4136 | -9/Storage | Discovered new exit (range 5) 4331 | -9/Storage | Entered Recycling 4332 | -9/Recycling | Met a Zionite searching for Scraptown 4341 | -9/Recycling | Build established: Scavenger-Mutant 4550 | -9/Recycling | Discovered new exit (range 14) 5282 | -9/Recycling | Scanned before Scraplab entrance 5327 | -9/Recycling | Entered Scraplab 5355 | -9/Recycling | Discovered new exit (range 3) 5363 | -9/Recycling | Entered Scraptown 5363 | -9/Scraptown | System corruption cleaned by C-Scrubber 5632 | -9/Scraptown | Visited UFD Registry 5632 | -9/Scraptown | Registered with UFD as "Microhacker" 5692 | -9/Scraptown | Visited Supply Room 5760 | -9/Scraptown | Visited Junk Repository 5830 | -9/Scraptown | Visited Curators Association 6134 | -9/Scraptown | Visited DA-N13 Charitable Foundation 6161 | -9/Scraptown | Found DCF Scrap (29 items) 6264 | -9/Scraptown | Visited Scrap Suit Storage 6350 | -9/Scraptown | Visited Sword Containment 6476 | -9/Scraptown | Build established: Mutant 6504 | -9/Scraptown | Visited Junk Repository 6608 | -9/Scraptown | Visited Derelict Rescue Squad 6636 | -9/Scraptown | Found DRS Beacon 7188 | -9/Scraptown | Discovered new exit (range 3) 7446 | -9/Scraptown | Visited The Evicted 7554 | -9/Scraptown | Visited Fellowship of the Rings 7564 | -9/Scraptown | Heard Great Nut preacher, LISTEN AND RECITE! 7889 | -9/Scraptown | Discovered new exit (range 9) 8149 | -9/Scraptown | Visited Spacefarers 9095 | -9/Scraptown | Visited Shadow of the Wyrm 9405 | -9/Scraptown | Entered Factory 9405 | -6/Factory | Evolved 6 slots: Power x1, Propulsion x1, Utility x3, Weapon x1 9721 | -6/Factory | Build established: Derelict-Mutant 10650 | -6/Factory | Build established: Mutant 10650 | -6/Factory | Discovered new exit (range 15) 10788 | -6/Factory | Identified exit to Lower Caves 11563 | -6/Factory | Discovered new exit (range 15) 11605 | -6/Factory | Entered Extension 11824 | -6/Extension | Rescued a captive Derelict 11834 | -6/Extension | Rescued a captive Derelict 12153 | -6/Extension | Build established: Scavenger-Mutant 12382 | -6/Extension | Rescued A7 12461 | -6/Extension | Rescued a captive Derelict 12669 | -6/Extension | Rescued a captive Derelict 13050 | -6/Extension | Spotted B-75 Beast 13068 | -6/Extension | Spotted B-75 Beast 13074 | -6/Extension | Allies destroyed B-75 Beast 13098 | -6/Extension | Allies destroyed B-75 Beast 13107 | -6/Extension | Lost 5 allies 13167 | -6/Extension | Build established: Scavenger-Tank 13487 | -6/Extension | Discovered new exit (range 16) 13489 | -6/Extension | Discovered new exit (range 15) 13511 | -6/Extension | Disrupted transfer network 13655 | -6/Extension | Entered Cetus 13655 | -6/Cetus | Accompanied by 1 ally (A7) 13660 | -6/Cetus | Acquired a Cetus Manufacturing Module code from A7 13686 | -6/Cetus | Spotted Cetus Guard 13686 | -6/Cetus | Spotted Cetus Guard 13691 | -6/Cetus | Destroyed Cetus Guard 13691 | -6/Cetus | Spotted Cetus Guard 13695 | -6/Cetus | Spotted Cetus Guard 13697 | -6/Cetus | Destroyed Cetus Guard 13707 | -6/Cetus | Allies destroyed Cetus Guard 13710 | -6/Cetus | Destroyed Cetus Guard 13745 | -6/Cetus | System corruption reached 10% 13908 | -6/Cetus | Build established: Scavenger-Mutant 14025 | -6/Cetus | System corruption reached 30% 14030 | -6/Cetus | Escorted A7 to Cetus Mainframe 14061 | -6/Cetus | Discovered new exit (range 16) 14087 | -6/Cetus | Started Cetus Manufacturing Module 14112 | -6/Cetus | Manufactured an Enhanced Grunt 14135 | -6/Cetus | Spotted Cetus Guard 14136 | -6/Cetus | Spotted Cetus Guard 14137 | -6/Cetus | Manufactured an Enhanced Grunt 14140 | -6/Cetus | Destroyed Cetus Guard 14140 | -6/Cetus | Spotted Cetus Guard 14140 | -6/Cetus | Spotted Cetus Guard 14142 | -6/Cetus | Destroyed Cetus Guard 14149 | -6/Cetus | Destroyed Cetus Guard 14154 | -6/Cetus | Allies destroyed Cetus Guard 14162 | -6/Cetus | Manufactured an Enhanced Grunt 14169 | -6/Cetus | Discovered new exit (range 15) 14177 | -6/Cetus | Met Revision 17 14187 | -6/Cetus | Manufactured an Enhanced Grunt 14212 | -6/Cetus | Manufactured an Enhanced Grunt 14313 | -6/Cetus | Entered Archives 14313 | -6/Archives | Accompanied by 6 allies (A7) 14318 | -6/Archives | Received a hacking code to weaken MAIN.C 14373 | -6/Archives | Discovered new exit (range 15) 14387 | -6/Archives | Discovered new exit (range 16) 14403 | -6/Archives | Discovered new exit (range 15) 14449 | -6/Archives | Unable to access archive contents 15317 | -6/Archives | Entered Hub_04(d) 15317 | -6/Hub_04(d) | Accompanied by 5 allies 15688 | -6/Hub_04(d) | Garrison activated, responded to threat 15825 | -6/Hub_04(d) | Discovered new exit (range 7) 15858 | -6/Hub_04(d) | Discovered new exit (range 10) 16017 | -6/Hub_04(d) | First assault squad dispatched 16023 | -6/Hub_04(d) | Entered Factory 16023 | -5/Factory | Evolved 2 slots: Power x1, Utility x1 16138 | -5/Factory | Repaired Imp. Utility Shielding 16156 | -5/Factory | Forged Quantum Companion 16323 | -5/Factory | First assault squad dispatched 17025 | -5/Factory | Identified exit to Upper Caves 17620 | -5/Factory | Entered Upper Caves 18038 | -5/Upper Caves | Encountered a Warlord checkpoint 18283 | -5/Upper Caves | Discovered new exit (range 8) 18293 | -5/Upper Caves | Identified exit to Upper Caves 18304 | -5/Upper Caves | Entered another Upper Caves area 18322 | -5/Upper Caves | Learned 4 Factory zone layouts 18403 | -5/Upper Caves | Found Alien Artifact 18407 | -5/Upper Caves | Identified Core Expander 18407 | -5/Upper Caves | Installed Core Expander, added new Propulsion slot 18527 | -5/Upper Caves | Discovered new exit (range 6) 18534 | -5/Upper Caves | Identified exit to Factory 18546 | -5/Upper Caves | Learned Factory garrison access intel 18879 | -5/Upper Caves | Attracted the attention of an 0b10 checkpoint 19367 | -5/Upper Caves | Discovered new exit (range 11) 19383 | -5/Upper Caves | Identified exit to Warlord 19390 | -5/Upper Caves | Entered Warlord 19443 | -5/Warlord | System corruption cleaned by Quarantine Array 20016 | -5/Warlord | Rebuked by Warlord 20041 | -5/Warlord | Warlord's base attacked by MAIN.C 20203 | -5/Warlord | Found Prototype Special Weapon 20203 | -5/Warlord | Identified RU-N14's Throwing Claymores v3 20267 | -5/Warlord | P-80 Master assimilated allied H7-FS4(Y) 20271 | -5/Warlord | Warlord forces counterattacked 20277 | -5/Warlord | Spotted B-86 Titan 20281 | -5/Warlord | Spotted B-75 Beast 20292 | -5/Warlord | Discovered new exit (range 15) 20319 | -5/Warlord | Lost 5 allies 20366 | -5/Warlord | Spotted Executioner 20407 | -5/Warlord | Lost 12 allies 20469 | -5/Warlord | Spotted Executioner 20477 | -5/Warlord | Spotted Executioner 20502 | -5/Warlord | Core integrity fell below 50% 20514 | -5/Warlord | Lost 11 allies 20528 | -5/Warlord | Identified exit to Proximity Caves 20539 | -5/Warlord | Entered Proximity Caves 20541 | -4/Proximity Caves | System corruption reached 10% 20553 | -4/Proximity Caves | Core integrity fell below 20% 20576 | -4/Proximity Caves | Lost 12 parts (3p2n5u2w) 20932 | -4/Proximity Caves | Discovered exit to Factory (range 10) 20952 | -4/Proximity Caves | Entered Factory 20952 | -4/Factory | Evolved 2 slots: Utility x2 20953 | -4/Factory | Identified exit to Upper Caves 20954 | -4/Factory | Loaded intel: 4 garrison access locations 21085 | -4/Factory | Repaired Centrium Heavy Treads? 22047 | -4/Factory | System corruption reached 10% 22640 | -4/Factory | Lost 4 parts (1p1n1u1w) 22645 | -4/Factory | Entered Upper Caves 22646 | -4/Upper Caves | Encountered a Warlord checkpoint 22712 | -4/Upper Caves | P-70 Sage assimilated allied TV-SGL(b) 22794 | -4/Upper Caves | Learned location of 1 exit from Proximity Caves 22796 | -4/Upper Caves | Learned 4 Research zone layouts 23248 | -4/Upper Caves | Spotted B-86 Titan 23316 | -4/Upper Caves | Lost 4 parts (1p1n2u) 23367 | -4/Upper Caves | Lost 4 parts (1p2u1w) 23502 | -4/Upper Caves | Lost 4 parts (1p1n2w) 23529 | -4/Upper Caves | Discovered new exit (range 15) 23608 | -4/Upper Caves | Attacked by a delusional Derelict stockpiling parts 23846 | -4/Upper Caves | Entered another Upper Caves area 23866 | -4/Upper Caves | Discovered new exit (range 7) 23922 | -4/Upper Caves | Learned Research emergency access door positions 24077 | -4/Upper Caves | Encountered a Warlord checkpoint 24535 | -4/Upper Caves | Attracted the attention of an 0b10 outpost 24598 | -4/Upper Caves | Destroyed 7 combat bots 24648 | -4/Upper Caves | Released all parts (7) 24662 | -4/Upper Caves | Core integrity fell below 50% 24670 | -4/Upper Caves | Lost 14 parts (3p4n5u2w) 24699 | -4/Upper Caves | Destroyed 7 combat bots 24793 | -4/Upper Caves | Entered Research 24793 | -3/Research | Evolved 2 slots: Utility x2 24861 | -3/Research | Build established: Mutant 24993 | -3/Research | Revision forces began assault on 0b10 25017 | -3/Research | Found Fusion Bomb Launcher 25023 | -3/Research | Discovered new exit (range 6) 25085 | -3/Research | Met up with Revision 17++ 25201 | -3/Research | Allied Derelicts emerged from ambush trap array 25239 | -3/Research | Scrapoids reinforcements arrived? 25493 | -3/Research | Research terminal network offline 26053 | -3/Research | Build established: Scavenger-Mutant 26381 | -3/Research | Spotted Striker 26383 | -3/Research | Spotted Striker 26383 | -3/Research | Allies destroyed Striker 26388 | -3/Research | Allies destroyed Striker 26495 | -3/Research | Spotted Striker 26497 | -3/Research | Destroyed Striker 26537 | -3/Research | Scrapoid reinforcements arrived 26823 | -3/Research | Spotted Executioner 26827 | -3/Research | Spotted Striker 26833 | -3/Research | Allies destroyed Striker 26841 | -3/Research | Allies destroyed Executioner 26894 | -3/Research | Spotted Striker 26903 | -3/Research | Lost 10 allies 26909 | -3/Research | Entered another Research area 26909 | -2/Research | Evolved 2 slots: Propulsion x1, Utility x1 26936 | -2/Research | Lost 3 parts (1p2u) 27503 | -2/Research | Released all parts (8) 27534 | -2/Research | Lost 14 parts (6p3n3u2w) 27549 | -2/Research | Core integrity fell below 50% 27602 | -2/Research | Core integrity fell below 20% 27645 | -2/Research | Destroyed by Gamma Bomb Trap Last Messages --------------- 27585_ Acquired 6 matter. 27595_ System corrupted: Matter fused (-6). 27596_ Slug penetrates Wall. 27600_ Penetrated by Slug. 27621_ System corrupted: Component data lost. 27644_ W-44 Eye sends out distress signal. 27645_ Triggered Gamma Bomb Trap. 27645_ A bubble of electromagnetic force engulfs the area. 27645_ Terminal disabled. 27645_ Gamma Bomb Trap short circuited. 27645_ A bubble of electromagnetic force engulfs the area. 27645_ Gamma Bomb Trap short circuited. 27645_ A bubble of electromagnetic force engulfs the area. 27645_ Gamma Bomb Trap short circuited. 27645_ A bubble of electromagnetic force engulfs the area. [Achievement: 30k Club] Map ----- +----------------------------------------------------+ | ?????????????????????????????????????????????????? | | ?????????????????????????????????????????????????? | | ?????????????????????????????????????????????????? | | ?????????????????????????????????????????????????? | | ?????????????????????????????????????????????????? | | ?????????????????????????????????????????????????? | | ?????????????????????????????????????????????????? | | ?????????????????????????????????????????????????? | | ?????????????????????????????????????????????????? | | ?????????????????????????????????????????????????? | | ?????????????????????????????????????????????????? | | ?????????????????????????????????????????????????? | | ?????????????????????????????????????????????????? | | ?????????????????????????????????????????????????? | | ?????????????????????????????w???????????????????? | | ???????????????????????????##????????????????????? | | ??????????????????????????? #????????????????????? | | ??????????????????????????! #????????????????????? | | ?????????????????????????? #????#o??????????????? | | ?????????????????????????? #??? +???????????????? | | ?????????????????????????? ??? #???????????????? | | ?????????????????????????? ?? ##??????????????? | | #######?###??############# ## #??????????????? | | """""" #??# # #??????????????? | | ""S""" #??# # #??????????????? | | """ #??# # @ #??????????????? | | #??# # #??????????????? | | ????# # #??????????????? | | ??????# # #??????????????? | | ????????# #??????????????? | | ##+########### # +??????????????? | | # + ## ######## w #??????????????? | | # ##### #### ##+#??????? #??????????????? | | # #???# #??# *#??????????? #??????????????? | | # #???# #??# #???????????? #??????????????? | | # #####+#### #?????????? ??#??????????????? | | # # * ########?????????# ????????????????? | | # # #???????????????## ???????????????? | | # # """ #???????????????? ???????????????? | | # # """" #???????????????? H ???????????????? | | # # """" +???????????????? ???????????????? | | # + """ #????????????????? ???????????????? | | # # #????????????????? ???????????????? | | # # = #?????????????????# #????????????#### | | # # #?????????????????# #?????????#### | | # ##########???????????????### ###???##### + | | # #????????????????????????# = #???#"""# ## ! | | # #????????????????????????# #####"Y"# ## ! | | # +????????????????????????+ %%! ## | | # #????????????????????????# ### ! ## | +----------------------------------------------------+ Best States ------------- Heat Dissipation 125 Energy Generation 61 Energy Capacity 580 Matter Stores 300 Matter Capacity 300 Sight Range 16 Robot Scan Range 15 Terrain Scan Density 10 ECM Strength 2 Jamming Range 14 Additional Mass Support 12 Armor Coverage 900 Resistance: KI 25 Resistance: TH 30 Core Shielding 30 Propulsion Shielding 66 Utility Shielding 66 Point Defense Rating 160 Weapon Cycling 25 Phase Shifting 10 Evasion (%) 50 Targeting Accuracy 6 Target Analysis 6 Core Analysis 6 Recoil Reduction 5 Particle Charging 25 Offensive Hacking 12 Defensive Hacking 24 Item Schematics ----------------- None Robot Schematics ------------------ None Fabricated ------------ Nothing Alien Tech Used ----------------- Core Expander Achievements -------------- 30k Club Collateral Damage Generalissimo Main Advantage No Explosion For You Overkill Prison Break Project G-00 Revising The Future Revolutionary Research Rockin' Loadout Sunderer Challenges ------------ None Game ------ Seed GodDisruptionBank Manual? 0 Play Time 04:00:36 Cumulative 42.0 hours Start 2024.09.03 @ 20:05:35 End 2024.09.05 @ 17:42:01 Sessions 13 Manual Loads 0 Difficulty Rogue Special Mode None Game No. 43 Rogue 43 Adventurer 0 Explorer 0 Win Type - Total 2 Types 2/0/0/0/0/0/0/0/0 Lore% 21 Gallery% 34 Achievement% 39 Wizard Run 0 Options --------- Layout 1 ASCII 0 Keyboard 0 Movement Arrows Keybinds 0 Fullscreen 1 Font 24/Tamsyn Map View 50x35 Zoom Use 0% Tactical HUD 1 Map Filters NONE Filters NONE Steam 1 RUN: 8b5db31a-77fa-4aa4-8615-ade4006818df